Cogmind - Beta 10.2 @@@ ROGUE MODE // 2021.03.14 @ 10:50:59 Player: MoonDog Result: Self-destructed Performance ------------- Evolutions (4) 2000 Regions Visited (9) 1800 Robots Destroyed (40) 200 Value Destroyed (1118) 1118 Prototype IDs (5) 100 Alien Tech Used (0) 0 Bonus (15) 15 TOTAL SCORE: 5233 Bonus ------- High Alert Combat Kills 15 Cogmind --------- Core Integrity 679/850 Matter 139/300 Energy 150/150 System Corruption 4% Temperature Cool (84) Movement Walking (120) Location -6/Factory Parts ------- > --- POWER (1) -------- Light Angular Momentum Engine > --- PROPULSION (4) --- Flexi-carbon Leg Flexi-carbon Leg Armored Leg Armored Leg > --- UTILITY (8) ------ Medium Storage Unit Enhanced Optical Array Improved Sensor Array Improved Signal Interpreter EM Shield Hacking Suite Improved Hacking Suite > --- WEAPON (2) ------- Phase Cannon Heavy Machine Gun > --- INVENTORY (8) ---- Light Fission Core Compact Matter Pod (0) System Guard Gauss Rifle Heavy Machine Gun Heavy Machine Gun Improved Datajack Great Axe Peak State ------------ > --- POWER ------------ Light Fission Core > --- PROPULSION ------- Armored Leg Armored Leg Improved Airjet Improved Gravmag System > --- UTILITY ---------- Medium Storage Unit Compact Matter Pod Enhanced Optical Array Signal Interpreter Improved ECM Suite EM Shield Hacking Suite Improved Hacking Suite > --- WEAPON ----------- KE Penetrator KE Penetrator > --- INVENTORY -------- Light Angular Momentum Engine Improved Sensor Array System Guard Heavy EM Pulse Gun Force Rifle Gauss Rifle Improved Datajack Great Axe [Rating: 65] Favorites ----------- Power Light Deuterium Engine Engine Light Deuterium Engine Power Core Light Fission Core Propulsion Armored Leg Leg Armored Leg Wheel Wheel Hover Unit Improved Gravmag System Flight Unit Improved VTOL Module Utility Hacking Suite Device Improved ECM Suite Storage Medium Storage Unit Processor Signal Interpreter Hackware Hacking Suite Weapon Plasma Cutter Energy Gun Force Rifle Energy Cannon Phase Cannon Ballistic Gun Heavy Machine Gun Ballistic Cannon Advanced Assault Cannon Special Weapon Plasma Cutter Slashing Weapon Great Axe Special Melee Weapon Improved Datajack Build | -11 -10 -9 -9 -9 -8 -8 -8 -7 -6 ------- Run | Scr Mat Mat Min Exi Min Mat Sto Fac Fac Slots Evolved 8 | . . 2 . . . 2 . 2 2 Power . | . . . . . . . . . . Propulsion 2 | . . . . . . 1 . 1 . Utility 6 | . . 2 . . . 1 . 1 2 Weapon . | . . . . . . . . . . Parts Attached 91 | 3 4 2 1 2 6 11 14 13 35 Power 12 | . 1 . . . 1 . 3 3 4 Engine 11 | . 1 . . . 1 . 3 3 3 Core 1 | . . . . . . . . . 1 Reactor . | . . . . . . . . . . Propulsion 26 | 2 . . 1 . 2 6 3 1 11 Treads . | . . . . . . . . . . Leg 8 | . . . . . . . . . 8 Wheel 3 | 2 . . 1 . . . . . . Hover 5 | . . . . . . . 1 1 3 Flight 10 | . . . . . 2 6 2 . . Utility 22 | . 1 2 . 2 . 2 2 5 8 Device 8 | . . 1 . . . . 1 2 4 Storage 5 | . 1 . . 2 . . . . 2 Processor 4 | . . 1 . . . 1 . 1 1 Hackware 5 | . . . . . . 1 1 2 1 Protection . | . . . . . . . . . . Artifact . | . . . . . . . . . . Weapon 31 | 1 2 . . . 3 3 6 4 12 Energy Gun 2 | . . . . . . . 1 . 1 Energy Cannon 1 | . . . . . . . . . 1 Ballistic Gun 17 | 1 . . . . 2 2 5 1 6 Ballistic Cannon 1 | . . . . . . . . 1 . Launcher . | . . . . . . . . . . Special Weapon 4 | . 2 . . . 1 1 . . . Impact Weapon . | . . . . . . . . . . Slashing Weapon 4 | . . . . . . . . 1 3 Piercing Weapon . | . . . . . . . . . . Special Melee Weapon 2 | . . . . . . . . 1 1 Unidentified Prototypes 5 | . . . . . . 1 2 1 1 Parts Lost 9 | . . . . . 1 . 5 1 2 Power 1 | . . . . . . . 1 . . Propulsion 2 | . . . . . 1 . 1 . . Utility 5 | . . . . . . . 2 1 2 Weapon 1 | . . . . . . . 1 . . Highest Loss Streak 3 | . . . . . 1 . 3 1 1 Average Slot Usage (%) 83 | . 65 59 66 71 71 77 79 79 94 Engine 5 | . 6 5 . . 7 9 8 6 4 Leg 7 | . . . . . . . . . 18 Wheel 4 | . 28 22 22 22 4 . . . . Hover 3 | . . . . . . . . 7 6 Flight 7 | . . . . . 16 26 19 15 1 Device 10 | . . 5 11 11 11 9 7 6 15 Storage 3 | . 1 . . 5 5 . . . 6 Processor 12 | . . 5 11 11 11 11 18 15 13 Hackware 10 | . . . . . . 7 13 13 14 Ballistic Gun 6 | . . . . . 13 5 8 7 7 Special Weapon 5 | . 28 22 22 22 2 7 . . . Naked Turns . | . . . . . . . . . . Heaviest Build 38 | 2 21 5 3 23 27 8 12 14 38 Greatest Support 72 | 3 20 20 3 20 20 18 12 15 72 Greatest Overweight (x) 4 | . 1 . . 1 3 1 . . 4 Average Overweight (x) . | . . . . . . . . . . Largest Inventory Capacity 10 | 4 10 4 4 10 10 4 4 4 8 Average Capacity 5 | 4 4 4 4 6 5 4 4 4 6 Most Carried 8 | 2 4 4 4 4 4 4 4 4 8 Average Carried 4 | 1 3 3 4 4 3 3 3 3 6 Final Capacity 10 | 4 4 4 4 10 4 4 4 4 8 Final Carried 8 | 2 3 4 4 4 4 4 4 4 8 Class Distribution -------------------- 25% | Hacker-Mutant 15% | Mutant 14% | Scavenger-Mutant 11% | Hacker-Sprinter 10% | Scavenger-Skirmisher 7% | Scout 6% | Hacker-Skirmisher 4% | Sprinter 3% | Hacker-Scout Dominant Class ---------------- Mutant | -10/Materials Mutant | -9/Materials Mutant | -9/Mines Scavenger-Mutant | -9/Exiles Scavenger-Mutant | -8/Mines Scavenger-Mutant | -8/Materials Hacker-Mutant | -8/Storage Hacker-Sprinter | -7/Factory Hacker-Mutant | -6/Factory Resources | -11 -10 -9 -9 -9 -8 -8 -8 -7 -6 ----------- Run | Scr Mat Mat Min Exi Min Mat Sto Fac Fac Matter Collected 1490 | 260 20 40 10 10 76 15 240 92 727 Remotely . | . . . . . . . . . . Salvage Created 1465 | 110 30 149 30 . 52 . 314 71 709 Parts 100 | 4 3 12 4 . 7 . 16 6 48 Haulers Intercepted 1 | . . . . . . . 1 . . Recyclers Shooed 5 | 1 . 1 . . . . 2 . 1 Parts Field Recycled . | . . . . . . . . . . Retrieved Matter . | . . . . . . . . . . Parts Self-Destructed . | . . . . . . . . . . Prevented . | . . . . . . . . . . Kills | -11 -10 -9 -9 -9 -8 -8 -8 -7 -6 ------- Run | Scr Mat Mat Min Exi Min Mat Sto Fac Fac Combat Hostiles Destroyed 20 | . . . . . 4 . 4 . 12 Guns 15 | . . . . . 4 . 4 . 7 Cannons 5 | . . . . . . . . . 5 Classes Destroyed 11 | 2 . 2 . . 1 . 3 1 2 Worker 3 | . . . . . . . . 1 2 Tunneler 5 | 1 1 . 1 . . . . . 2 Hauler 1 | . . . . . . . 1 . . Recycler 3 | 1 . 1 . . . . . . 1 Operator 2 | . . 1 . . . . 1 . . Watcher 6 | . . 1 . . . . 1 2 2 Swarmer 8 | . . . . . 4 . . . 4 Grunt 5 | . . . . . . . 3 . 2 Sentry 1 | . . . . . . . . . 1 Hunter 3 | . . . . . . . 1 . 2 Programmer 3 | . . . . . . . . . 3 Best Kill Streak 7 | 1 1 2 1 . 4 . 7 1 6 Combat Bots Only 5 | . . . . . 4 . 4 . 5 Max Kills in Single Turn 2 | 1 1 1 1 . 2 . 1 1 2 Gunslinging 1 | . . . . . 1 . . . . Exploded . | . . . . . . . . . . Melee . | . . . . . . . . . . Uniques/NPCs Destroyed . | . . . . . . . . . . Combat | -11 -10 -9 -9 -9 -8 -8 -8 -7 -6 -------- Run | Scr Mat Mat Min Exi Min Mat Sto Fac Fac Damage Taken 2544 | . 38 . . . 196 235 570 114 1391 Core 444 | . . . . . 28 112 87 46 171 Absorbed by Shields . | . . . . . . . . . . Core Remaining (%) 89 | 100 100 . . . 93 . 63 93 . Volleys Fired 143 | 10 8 7 1 . 6 13 27 12 59 Largest 2 | 1 2 2 2 . 2 1 2 1 2 Hottest 120 | 20 40 40 40 . 46 100 100 28 120 Shots Fired 218 | 10 16 14 2 . 12 13 30 12 109 Gun 157 | 10 . . . . 12 . 29 12 94 Cannon 15 | . . . . . . . . . 15 Launcher . | . . . . . . . . . . Special 46 | . 16 14 2 . . 13 1 . . Kinetic 142 | 10 . . . . 12 . 15 12 93 Thermal 62 | . 16 14 2 . . 13 1 . 16 Explosive . | . . . . . . . . . . Electromagnetic 14 | . . . . . . . 14 . . Robot Hit Streak 12 | 6 2 1 2 . 3 . 12 4 6 Robot Miss Streak 21 | 1 4 2 . . 2 . 21 7 4 Penetration Max 1 | . . . . . . . . . 1 Secondary Targets 3 | . . . . . 2 . . . 1 Max Gunslinging Chain 1 | . . . . . 1 . . . 1 Shots Hit Robots 135 | 8 5 5 1 . 11 . 24 10 71 Core Hits 74 | 3 3 5 1 . 4 . 24 7 27 Critical Hits 7 | . 1 2 1 . . . . . 3 Critical Kills 3 | . 1 1 1 . . . . . . Critical Parts Destroyed 4 | . . 1 . . . . . . 3 Melee Attacks 11 | . . . . . . . . 4 7 Impact . | . . . . . . . . . . Slashing 7 | . . . . . . . . 2 5 Piercing . | . . . . . . . . . . Sneak Attacks 3 | . . . . . . . . . 3 Combat Hostiles 2 | . . . . . . . . . 2 Follow-up Attacks . | . . . . . . . . . . Damage Inflicted 3228 | 105 76 70 12 . 117 . 472 156 2220 Guns 2052 | 105 . . . . 117 . 472 109 1249 Cannons 299 | . . . . . . . . . 299 Explosions 466 | . . . . . . . . . 466 Melee 252 | . . . . . . . . 47 205 Ramming 1 | . . . . . . . . . 1 Kinetic 1843 | 105 . . . . 117 . 263 109 1249 Thermal 457 | . 76 70 12 . . . . . 299 Explosive 466 | . . . . . . . . . 466 Electromagnetic 209 | . . . . . . . 209 . . Impact . | . . . . . . . . . . Slashing 252 | . . . . . . . . 47 205 Piercing . | . . . . . . . . . . Highest Corruption 4 | . . . . . . . . . 4 Average Corruption 2 | . . . . . . . . . 2 Corruption Purged . | . . . . . . . . . . Effects 15 | . . . . . . . . . 15 Message Errors 5 | . . . . . . . . . 5 Matter Fused 2 | . . . . . . . . . 2 Heat Flow Errors 1 | . . . . . . . . . 1 Data Loss (minor) 3 | . . . . . . . . . 3 Targeting Errors 4 | . . . . . . . . . 4 Overload Shots . | . . . . . . . . . . Overflow Damage 227 | . . . . . . . . . 227 Projectiles . | . . . . . . . . . . Explosions 117 | . . . . . . . . . 117 Melee 110 | . . . . . . . . . 110 Knockbacks . | . . . . . . . . . . Impact . | . . . . . . . . . . Kinetic . | . . . . . . . . . . Secondary . | . . . . . . . . . . Self-Inflicted Damage . | . . . . . . . . . . Shots . | . . . . . . . . . . Rammed 1 | . . . . . . . . . 1 Targets Rammed 1 | . . . . . . . . . 1 Kicked . | . . . . . . . . . . Crushed . | . . . . . . . . . . Highest Temperature 414 | . . . . . . 19 38 2 414 Average Temperature 66 | . . . . . . 4 20 2 109 Received Heat Transfer 573 | . . . . . . 63 234 33 243 Effects 5 | . . . . . . . . . 5 Shutdowns 1 | . . . . . . . . . 1 Energy Bleed 1 | . . . . . . . . . 1 Interference 3 | . . . . . . . . . 3 Siege Activations . | . . . . . . . . . . Robots Corrupted . | . . . . . . . . . . Combat Hostiles . | . . . . . . . . . . Parts Fried 1 | . . . . . . . 1 . . Impact Corruptions . | . . . . . . . . . . Robots Melted . | . . . . . . . . . . Combat Hostiles . | . . . . . . . . . . Parts Melted 4 | . 2 1 . . . . . . 1 Heat Transferred 851 | . 259 222 37 . . . . . 333 Parts Sabotaged . | . . . . . . . . . . Parts Stolen . | . . . . . . . . . . Parts Stripped . | . . . . . . . . . . Power Chain Reactions . | . . . . . . . . . . Missiles Intercepted . | . . . . . . . . . . Alert | -11 -10 -9 -9 -9 -8 -8 -8 -7 -6 ------- Run | Scr Mat Mat Min Exi Min Mat Sto Fac Fac Peak Influence 402 | 10 51 103 44 . 80 166 287 231 402 Initial 130 | . 6 21 39 . . 31 50 130 112 Average 130 | 4 36 64 40 . 69 89 157 179 159 Maximum Alert Level 2 | . . . . . . . 1 1 2 Low Security (%) 81 | 100 100 100 100 . 100 100 75 87 67 Level 1 18 | . . . . . . . 24 12 32 Level 2 . | . . . . . . . . . . Level 3 . | . . . . . . . . . . Level 4 . | . . . . . . . . . . Level 5 . | . . . . . . . . . . High Security . | . . . . . . . . . . Max Security . | . . . . . . . . . . Squads Dispatched 12 | . 2 1 . . . 1 2 . 6 Investigation 2 | . . . . . . . . . 2 Extermination 2 | . . . . . . . . . 2 Reinforcement 7 | . 2 1 . . . 1 1 . 2 Assault . | . . . . . . . . . . Garrison 1 | . . . . . . . 1 . . Intercept . | . . . . . . . . . . Construction Impeded . | . . . . . . . . . . Haulers Reinforced . | . . . . . . . . . . Stealth | -11 -10 -9 -9 -9 -8 -8 -8 -7 -6 --------- Run | Scr Mat Mat Min Exi Min Mat Sto Fac Fac Distress Signals 5 | . . . . . . 1 1 . 3 Communications Jammed . | . . . . . . . . . . Distress Signals . | . . . . . . . . . . Times Spotted 97 | . 7 8 . . 4 18 24 10 26 Peak Tracking Total 10 | . 1 6 . . 4 9 10 6 6 Tactical Retreats 11 | . . . . . . 3 4 1 3 Traps | -11 -10 -9 -9 -9 -8 -8 -8 -7 -6 ------- Run | Scr Mat Mat Min Exi Min Mat Sto Fac Fac Traps Triggered 3 | . 1 . . . . . 1 1 . Indirectly . | . . . . . . . . . . Trap Hack Attempts . | . . . . . . . . . . Triggered . | . . . . . . . . . . Disarmed . | . . . . . . . . . . Reprogrammed . | . . . . . . . . . . Reused . | . . . . . . . . . . Traps Extracted . | . . . . . . . . . . Installed . | . . . . . . . . . . Triggered . | . . . . . . . . . . Machines | -11 -10 -9 -9 -9 -8 -8 -8 -7 -6 ---------- Run | Scr Mat Mat Min Exi Min Mat Sto Fac Fac Machines Disabled 7 | . . . . . . . . . 7 Max in Single Turn 4 | . . . . . . . . . 4 Machines Sabotaged . | . . . . . . . . . . Garrisons Compromised . | . . . . . . . . . . Overloaded Fab Kills . | . . . . . . . . . . Fab Network Shutdowns . | . . . . . . . . . . Hacking | -11 -10 -9 -9 -9 -8 -8 -8 -7 -6 --------- Run | Scr Mat Mat Min Exi Min Mat Sto Fac Fac Machines Accessed 21 | . 1 2 . . . 5 5 3 5 Terminals 15 | . 1 2 . . . 4 4 1 3 Fabricators 3 | . . . . . . . . 1 2 Repair Stations 1 | . . . . . . . 1 . . Recycling Units . | . . . . . . . . . . Scanalyzers 2 | . . . . . . 1 . 1 . Garrison Access . | . . . . . . . . . . Total Hacks 64 | . 4 5 . . . 21 16 6 12 Successful 38 | . 4 2 . . . 15 10 3 4 Failed 25 | . . 3 . . . 6 5 3 8 Catastrophic 1 | . . 1 . . . . . . . Database Lockouts 1 | . . . . . . . 1 . . Manual 34 | . 2 3 . . . 16 11 2 . Terminals 51 | . 4 5 . . . 19 14 2 7 Fabricators 7 | . . . . . . . . 2 5 Repair Stations 2 | . . . . . . . 2 . . Recycling Units . | . . . . . . . . . . Scanalyzers 4 | . . . . . . 2 . 2 . Garrison Access . | . . . . . . . . . . Terminal Hacks 17 | . 2 1 . . . 6 5 1 2 Part Schematic 1 | . . . . . . . 1 . . Open Door 2 | . . . . . . . 2 . . Level Access Points 1 | . . . . . . 1 . . . Emergency Access Points 1 | . . . . . . 1 . . . Machine Index 1 | . . . . . . . . . 1 Terminal Index 3 | . . . . . . 2 1 . . Unreport Threat 1 | . . . . . . 1 . . . Locate Traps 1 | . 1 . . . . . . . . Dispatch Records 1 | . . . . . . . 1 . . Reinforcement Status 1 | . . . . . . . . . 1 Recall Investigation 1 | . . 1 . . . . . . . Hauler Manifests 1 | . 1 . . . . . . . . Zone Layout 2 | . . . . . . 1 . 1 . Fabricator Hacks 4 | . . . . . . . . 2 2 Load Schematic 1 | . . . . . . . . 1 . Build 3 | . . . . . . . . 1 2 Repair Station Hacks 2 | . . . . . . . 2 . . Scan Component 1 | . . . . . . . 1 . . Repair 1 | . . . . . . . 1 . . Recycling Unit Hacks . | . . . . . . . . . . Scanalyzer 2 | . . . . . . 2 . . . Insert Component 1 | . . . . . . 1 . . . Analyze 1 | . . . . . . 1 . . . Garrison Access Hacks . | . . . . . . . . . . Unauthorized Hacks 13 | . 2 1 . . . 7 3 . . Terminals 13 | . 2 1 . . . 7 3 . . Track 3 | . 1 . . . . 1 1 . . Assimilate 1 | . . . . . . 1 . . . Botnet 8 | . 1 1 . . . 4 2 . . Detonate 1 | . . . . . . 1 . . . Fabricators . | . . . . . . . . . . Repair Stations . | . . . . . . . . . . Recycling Units . | . . . . . . . . . . Scanalyzers . | . . . . . . . . . . Garrison Access . | . . . . . . . . . . Data Cores Recovered . | . . . . . . . . . . Used . | . . . . . . . . . . Hacking Detections 18 | . 1 2 . . . 5 3 3 4 Full Trace Events 2 | . . . . . . . . . 2 Feedback Events 1 | . . . . . . . . . 1 Corruption 1 | . . . . . . . . . 1 Feedback Blocked . | . . . . . . . . . . Robot Schematics Acquired . | . . . . . . . . . . Robots Built . | . . . . . . . . . . Matter . | . . . . . . . . . . Time . | . . . . . . . . . . Total Robot Build Rating . | . . . . . . . . . . Part Schematics Acquired 2 | . . . . . . 1 1 . . Parts Built 5 | . . . . . . . . 1 4 Matter 592 | . . . . . . . . 146 446 Time 218 | . . . . . . . . 73 145 Total Part Build Rating 29 | . . . . . . . . 3 26 Parts Repaired 1 | . . . . . . . 1 . . Time 60 | . . . . . . . 60 . . Parts Recycled . | . . . . . . . . . . Recycled Matter . | . . . . . . . . . . Retrieved Matter . | . . . . . . . . . . Retrieved Components . | . . . . . . . . . . Parts Scanalyzed 1 | . . . . . . 1 . . . Part Schematics Acquired 1 | . . . . . . 1 . . . Parts Damaged . | . . . . . . . . . . Bothacking | -11 -10 -9 -9 -9 -8 -8 -8 -7 -6 ------------ Run | Scr Mat Mat Min Exi Min Mat Sto Fac Fac Used RIF Installer . | . . . . . . . . . . Robots Hacked . | . . . . . . . . . . Non-combat . | . . . . . . . . . . Combat . | . . . . . . . . . . Robot Hacks Applied . | . . . . . . . . . . Relay Couplers Released . | . . . . . . . . . . Robots Rewired 2 | . . . . . . . . . 2 Allies Hacked . | . . . . . . . . . . Hacks Repelled . | . . . . . . . . . . Allies | -11 -10 -9 -9 -9 -8 -8 -8 -7 -6 -------- Run | Scr Mat Mat Min Exi Min Mat Sto Fac Fac Total Allies 3 | . . . . . . 1 . . 2 Largest Group 2 | . . . . . . 1 . . 2 Highest-Rated Group 73 | . . . . . . 10 . . 73 Highest-Rated Ally 41 | . . . . . . 10 . . 41 Total Orders . | . . . . . . . . . . Ally Attacks 4 | . . . . . . . . . 4 Total Damage 61 | . . . . . . . . . 61 Kills . | . . . . . . . . . . Allies Corrupted . | . . . . . . . . . . Allies Melted . | . . . . . . . . . . Intel | -11 -10 -9 -9 -9 -8 -8 -8 -7 -6 ------- Run | Scr Mat Mat Min Exi Min Mat Sto Fac Fac Robot Analysis Total . | . . . . . . . . . . Derelict Logs Recovered . | . . . . . . . . . . Drone Launches . | . . . . . . . . . . Drone Recoveries . | . . . . . . . . . . Exploration | -11 -10 -9 -9 -9 -8 -8 -8 -7 -6 ------------- Run | Scr Mat Mat Min Exi Min Mat Sto Fac Fac Turns Passed 2908 | 79 191 110 66 130 125 297 304 366 1240 Spaces Moved 3008 | 63 224 109 110 217 150 384 414 515 822 Core 546 | 63 127 60 110 163 3 . . . 20 Treads . | . . . . . . . . . . Legs 505 | . . . . . . . . . 505 Wheels 203 | . 97 49 . 54 3 . . . . Hover 118 | . . . . . . . . 35 83 Flight 1636 | . . . . . 144 384 414 480 214 Fastest Speed 29 | 50 50 50 50 50 37 29 32 32 32 Average Speed 56 | 50 63 63 50 58 41 33 32 33 95 Slowest Speed 250 | 50 90 80 50 90 200 105 35 50 250 Overloaded Moves . | . . . . . . . . . . Propulsion Burnouts . | . . . . . . . . . . Robots Hopped 29 | . . . . . 1 4 19 5 . Cave-ins Triggered . | . . . . . . . . . . Exploration Rate (%) 25 | 4 36 8 19 51 22 27 55 13 16 Regions Visited 9 Branch Regions 4 Pre-discovered Areas . | . . . . . . . . . . Known Exits Taken 7 | . . 1 1 1 1 1 1 1 . Unknown Exits Taken 2 | 1 1 . . . . . . . . Scrap Searched 1 | . . . . . 1 . . . . Spaces Dug 17 | . . . . . . 13 1 1 2 Terrain Destroyed 47 | . . . . . . 13 1 1 32 Melee 3 | . . . . . . . . 1 2 Projectile 26 | . . . . . . 13 1 . 12 AOE 18 | . . . . . . . . . 18 Terrain Rammed . | . . . . . . . . . . Walls Destroyed . | . . . . . . . . . . Machines Disabled . | . . . . . . . . . . Actions | -11 -10 -9 -9 -9 -8 -8 -8 -7 -6 --------- Run | Scr Mat Mat Min Exi Min Mat Sto Fac Fac Total 3882 | 98 241 121 116 218 199 510 530 689 1160 Wait 542 | 21 . 1 4 . 31 93 73 117 202 Move 2944 | 62 223 108 109 216 147 375 376 506 822 Hop 26 | . . . . . 1 4 18 3 . Pick Up 21 | 2 2 1 . . 2 3 1 2 8 Fast Attach 61 | 3 3 2 . 2 4 8 7 10 22 Attach 12 | . 1 . . . . 1 5 2 3 Detach 17 | . 2 1 . . . 1 4 4 5 Swap 18 | . . . 1 . 2 2 2 1 10 Drop 55 | . 2 1 1 . 6 10 4 10 21 Fire 143 | 10 8 7 1 . 6 13 27 12 59 Melee 11 | . . . . . . . . 4 7 Ram . | . . . . . . . . . . Kick 1 | . . . . . . . . . 1 Crush . | . . . . . . . . . . Escape Stasis 31 | . . . . . . . 13 18 . Rewire . | . . . . . . . . . . Trap . | . . . . . . . . . . Miscellaneous . | . . . . . . . . . . Route ------- -11/Scrapyard -10/Materials (discovered 2 exits: *Mat / [*Min]) -9/Materials -9/Mines (discovered 2 exits: *Exi / *Zio) -9/Exiles -8/Mines -8/Materials (discovered 4 exits: Fac x3 / *Sto) -8/Storage -7/Factory -6/Factory History --------- Turn | Location | Event 2 | -11/Scrapyard | Met Revision 17 8 | -11/Scrapyard | Discovered new exit (range 16) 80 | -11/Scrapyard | Entered Materials 97 | -10/Materials | Discovered new exit (range 16) 164 | -10/Materials | Discovered new exit (range 11) 271 | -10/Materials | Entered another Materials area 271 | -9/Materials | Evolved 2 slots: Utility x2 309 | -9/Materials | Discovered new exit (range 15) 316 | -9/Materials | Build established: Mutant 377 | -9/Materials | Identified exit to Mines 381 | -9/Materials | Entered Mines 382 | -9/Mines | A Derelict revealed a hidden shortcut to a safe place 387 | -9/Mines | Identified exit to Zion 444 | -9/Mines | Deemed a non-threat by the Exiles lab entrance 445 | -9/Mines | Discovered new exit (range 5) 446 | -9/Mines | Identified exit to Exiles 447 | -9/Mines | Entered Exiles 459 | -9/Exiles | Met 8R-AWN 470 | -9/Exiles | Met EX-HEX 490 | -9/Exiles | Met EX-DEC 506 | -9/Exiles | Met EX-BIN 566 | -9/Exiles | Discovered new exit (range 14) 576 | -9/Exiles | Identified exit to Mines 577 | -9/Exiles | Entered Mines 700 | -8/Mines | Discovered new exit (range 8) 702 | -8/Mines | Identified exit to Materials 702 | -8/Mines | Entered Materials 702 | -8/Materials | Evolved 2 slots: Propulsion x1, Utility x1 710 | -8/Materials | Discovered new exit (range 16) 896 | -8/Materials | Identified exit to Factory 998 | -8/Materials | Identified exit to Storage 999 | -8/Materials | Entered Storage 1110 | -8/Storage | Garrison activated, responded to threat 1123 | -8/Storage | Lost 3 parts (1p1n1w) 1215 | -8/Storage | Repaired Imp. VTOL Module 1288 | -8/Storage | Central database locked down 1295 | -8/Storage | Discovered exit to Factory (range 20) 1303 | -8/Storage | Entered Factory 1303 | -7/Factory | Evolved 2 slots: Propulsion x1, Utility x1 1546 | -7/Factory | Fabricated Hacking Suite (x1) 1623 | -7/Factory | Discovered new exit (range 16) 1669 | -7/Factory | Identified exit to Factory 1669 | -7/Factory | Entered another Factory area 1669 | -6/Factory | Evolved 2 slots: Utility x2 1733 | -6/Factory | Build established: Hacker-Sprinter 2046 | -6/Factory | Build established: Hacker-Mutant 2076 | -6/Factory | Fabricated KE Penetrator (x2) 2518 | -6/Factory | Fabricated Adv. Thermal Shield? 2908 | -6/Factory | Build established: Scavenger-Skirmisher 2909 | -6/Factory | Self-destructed Last Messages --------------- 02879_ System corrupted: Hvy. Machine Gun targeting data glitched. 02882_ S-27 Virus destroyed. 02886_ R-10 Processor collects VTOL Module. 02887_ VTOL Module melted. 02887_ S-27 Virus destroyed. 02895_ Overheating: System interference. 02895_ Imp. Signal Interpreter temporarily disabled. 02895_ Phase Cannon temporarily disabled. 02895_ Enh. Optical Array temporarily disabled. 02895_ K-01 Serf collects debris. 02896_ Overheating: Energy bleed (-18). 02899_ Drone Bay destroyed. 02900_ K-01 Serf collects debris. 02900_ System corrupted: Hvy. Machine Gun targeting data glitched. 02904_ K-01 Serf collects debris. 02904_ R-10 Processor collects Lgt. Nuclear Core. 02904_ K-01 Serf destroyed. 02904_ K-01 Serf collects debris. 02907_ R-10 Processor collects Sml. Matter Pod. 02908_ Destroyed Hvy. Laser. Map ----- +----------------------------------------------------+ | ????????????????????# # !! """ """ + | | ????????????????????########## !! """ """ # | | ?????????????????????????????# [ # | | ?????????????????????????????# """ ![[ # | | ??????????????????????###########""##! """ ! # | | ??????????????????????# = # """ [[[# | | ??????????????????????# % # [# | | ??????????????????????# = # # | | ??????????????????????# ! [ # # | | ??????????????????????# =!! # # | | ??????????????????????# [%| ] # # | | ??????????????????????###+########### # | | ????????????????????????# ## # # | | ?????????????#??????????# ## ! # | | ?????????????# ######??## ## # | | ????????????? ??# ## !! # | | ?????????????? ??# ## !! [=? + | | ###?????###???? ?# ## ! = # | | ????? #????""" """?# ## # # | | ????? # """ """ # ## # """ """ # | | ""???"" # """ """ # # # """ """ # | | ""??""" / +%########### """ """ + | | ""?"""" # !] #k#?????????# # | | """"""" # !] """ #*#?????????# # | | # R"?#[#?????????# # | | """"""" # """?#@#?###################### | | """"""" # ??# ### #?# | | """"""" ###########??;== # ? #?# | | """"""" #????????????;g%!# #?# | | #???????????## %%"= #?# | | """""" ##############R |[!* #?# | | """"""" A # #?# | | """"""" # | #?? | | """"""" # #?? | | ? ####################?? | | [ #######+#####+;####?????????????????? | | #####/### #?????????????????? | | ### [[!# #?????????????????? | | + # #?????????????????? | | ######## """# #?????????????????? | | ???????# Y"# #?????????????????? | | ???????# """# #?????????????????? | | ???????# # #?????????????????? | | ???????#########################?????????????????? | | | | | | | | | | | | | +----------------------------------------------------+ Best States ------------- Heat Dissipation 37 Energy Generation 18 Energy Capacity 500 Matter Stores 313 Matter Capacity 450 Sight Range 22 Robot Scan Range 13 Terrain Scan Density 10 Resistance: EM 25 Evasion (%) 64 Offensive Hacking 32 Defensive Hacking 10 Item Schematics ----------------- Plasma Cutter | -8/Materials | Scanalyzed Hacking Suite | -8/Storage | Hacked Robot Schematics ------------------ None Fabricated ------------ Hacking Suite | x1 | -7/Factory KE Penetrator | x2 | -6/Factory | Preloaded Adv. Thermal Shield | x2 | -6/Factory | Preloaded Alien Tech Used ----------------- None Achievements -------------- None Challenges ------------ None Game ------ Seed FortressRecyclingScanner Manual? 0 Play Time 01:01:01 Cumulative 119.3 hours Start 2021.03.12 @ 07:00:31 End 2021.03.14 @ 10:50:59 Sessions 3 Manual Loads 0 Difficulty Rogue Special Mode None Game No. 97 Rogue 97 Adventurer 0 Explorer 0 Win Type - Total 1 Types 1/0/0/0/0/0/0/0/0 Lore% 41 Gallery% 58 Achievement% 46 Wizard Run 0 Options --------- ASCII 0 Keyboard 0 Movement Numpad Keybinds 0 Fullscreen 0 Font 14/Cog Map View 76x50 Tactical HUD 1 Map Filters NONE Filters NONE Steam 1 RUN: ab7b64e4-f6ba-4999-96d0-b61a4a81943e